[Event "FIDE World Senior-50 CC 2023"]
[Site "Terrasini"]
[Date "2023.10.30"]
[Round "6.15"]
[White "Cabe, Arlan"]
[Black "Koganov, Mikhail"]
[Result "1-0"]
[ECO "A46"]
[WhiteElo "2303"]
[BlackElo "2170"]
[Annotator "RC"]
[PlyCount "153"]
[EventDate "2023.10.22"]
[EventType "swiss"]
[EventCountry "ITA"]
[SourceTitle "playchess.com"]
[Source "ChessBase"]
[SourceQuality "1"]
[TimeControl "40/5400+30:1800+30"]

1. d4 {[%emt 0:01:09]} d6 {[%emt 0:01:01]} 2. Nf3 {[%emt 0:00:28]} Nf6 {[%emt 0:01:45]} 3. b3 {[%emt 0:02:47]} g6 {[%emt 0:04:02]} 4. Bb2 {[%emt 0:00:09]} d5 {[%emt 0:00:07]} 5. c4 {[%emt 0:00:36]} c6 {[%emt 0:00:26]} 6. e3 {[%emt 0:04:30]} Bg7 {[%emt 0:01:04]} 7. Be2 {[%emt 0:01:11]} O-O {[%emt 0:01:15]} 8. Nc3 {[%emt 0:01:08]} Bf5 {[%emt 0:00:20]} 9. O-O {[%emt 0:00:19]} Nbd7 {[%emt 0:06:28]} 10. cxd5 {[%emt 0:02:00]} cxd5 {[%emt 0:00:13]} 11. a4 {[%emt 0:01:37]} Rc8 {[%emt 0:01:50]} 12. a5 {[%emt 0:02:44]} Nb8 {[%emt 0:02:22]} 13. b4 {[%emt 0:01:08]} Ne4 {[%emt 0:00:40]} 14. Qb3 {[%emt 0:00:57]} Nxc3 {[%emt 0:01:28]} 15. Bxc3 {[%emt 0:00:02]} Bg4 {[%emt 0:00:20]} 16. Rfc1 {[%emt 0:02:37]} e6 {[%emt 0:02:38]} 17. b5 {[%emt 0:03:49]} Re8 {[%emt 0:01:12]} 18. Ra2 {[%emt 0:08:20]} Bf8 {[%emt 0:02:19]} 19. Ne5 {[%emt 0:02:52]} Bxe2 {[%emt 0:00:21]} 20. Rxe2 {[%emt 0:00:02]} Nd7 {[%emt 0:00:22]} 21. Nd3 {[%emt 0:01:15]} Bd6 {[%emt 0:02:21]} 22. Rec2 {[%emt 0:03:47]} Rc4 {[%emt 0:03:40]} 23. Nb2 {[%emt 0:06:13]} Rc8 {[%emt 0:02:41]} 24. Bb4 {[%emt 0:03:06]} Rxc2 {[%emt 0:01:40]} 25. Rxc2 {[%emt 0:00:03]} Bb8 {[%emt 0:01:33]} 26. Nd3 {[%emt 0:02:56]} Kg7 {[%emt 0:07:26]} 27. Be1 {[%emt 0:10:10]} Nf6 {[%emt 0:04:49]} 28. f3 {[%emt 0:01:20]} Re7 {[%emt 0:01:57]} 29. b6 {[%emt 0:08:47]} axb6 {[%emt 0:01:06]} 30. axb6 {[%emt 0:00:03]} Nd7 {[%emt 0:01:35]} 31. Ba5 {[%emt 0:00:38]} Bd6 {[%emt 0:01:28]} 32. f4 {[%emt 0:02:16]} f6 {[%emt 0:05:08]} 33. Qb5 {[%emt 0:04:55]} Kf7 {[%emt 0:01:10]} 34. Nb2 {[%emt 0:01:32]} Nb8 {[%emt 0:00:52]} 35. Bb4 {[%emt 0:03:34]} Bxb4 {[%emt 0:04:40]} 36. Qxb4 {[%emt 0:00:03]} Nc6 {[%emt 0:00:11]} 37. Qb5 {[%emt 0:06:25]} Qa8 {[%emt 0:00:14]} 38. Na4 {[%emt 0:01:23]} Qa5 {[%emt 0:00:19]} 39. Qxa5 {[%emt 0:01:44]} Nxa5 {[%emt 0:00:04]} 40. Rc8 {[%emt 0:00:34]} Re8 {[%emt 0:00:37]} 41. Rc7+ {[%emt 0:30:54]} Re7 {[%emt 0:30:08]} 42. Kf2 {[%emt 0:02:31]} Nc4 {[%emt 0:01:48]} 43. Ke2 {[%emt 0:04:25]} Ke8 {[%emt 0:01:45]} 44. Rc8+ {[%emt 0:02:35]} Kd7 {[%emt 0:00:42]} 45. Rc5 {[%emt 0:00:39]} Kd8 {[%emt 0:00:59]} 46. e4 {[%emt 0:01:42]} Rd7 {[%emt 0:00:58]} 47. e5 {[%emt 0:00:00]} fxe5 {[%emt 0:00:00]} 48. fxe5 {[%emt 0:00:00]} Re7 {[%emt 0:00:00]} 49. g3 {[%emt 0:00:00]} h6 {[%emt 0:00:00]} 50. Kd3 {[%emt 0:00:00]} Rf7 {[%emt 0:00:00]} 51. Rxc4 {[%emt 0:00:00]} dxc4+ {[%emt 0:00:00]} 52. Kxc4 {[%emt 0:00:00]} Rf1 {[%emt 0:00:00]} 53. Nc5 {[%emt 0:00:00]} Rc1+ {[%emt 0:00:00]} 54. Kd3 {[%emt 0:00:00]} Kc8 {[%emt 0:00:00]} 55. Nxe6 {[%emt 0:00:00]} Rc6 {[%emt 0:00:00]} 56. d5 {[%emt 0:00:00]} Rxb6 {[%emt 0:00:00]} 57. d6 {[%emt 0:00:00]} Rb1 {[%emt 0:00:00]} 58. Nf8 {[%emt 0:00:00]} Rd1+ {[%emt 0:00:00]} 59. Kc4 {[%emt 0:00:00]} Kd8 {[%emt 0:01:58]} 60. Kc5 {[%emt 0:03:16]} Ke8 {[%emt 0:03:10]} 61. Nxg6 {[%emt 0:01:46]} Kd7 {[%emt 0:00:20]} 62. Nf8+ {[%emt 0:00:08]} Ke8 {[%emt 0:00:34]} 63. Ne6 {[%emt 0:00:08]} Re1 {[%emt 0:00:34]} 64. Kd5 {[%emt 0:00:13]} Rd1+ {[%emt 0:03:51]} 65. Nd4 {[%emt 0:01:56]} b5 {[%emt 0:01:03]} 66. e6 {[%emt 0:00:52]} b4 {[%emt 0:01:02]} 67. d7+ {[%emt 0:01:16]} Kd8 {[%emt 0:00:58]} 68. Ke5 {[%emt 0:00:52]} Kc7 {[%emt 0:00:31]} 69. Nb5+ {[%emt 0:01:02]} Kd8 {[%emt 0:00:49]} 70. Nd4 {[%emt 0:00:20]} Kc7 {[%emt 0:00:18]} 71. Nb3 {[%emt 0:00:26]} Kd8 {[%emt 0:02:04]} 72. Na5 {[%emt 0:00:47]} Kc7 {[%emt 0:07:06]} 73. Kf6 {[%emt 0:00:30]} h5 {[%emt 0:00:32]} 74. Ke7 {[%emt 0:00:29]} Rd2 {[%emt 0:01:26]} 75. Nb3 {[%emt 0:00:19]} Rd1 {[%emt 0:00:26]} 76. Nc5 {[%emt 0:00:34]} Kc6 {[%emt 0:01:28]} 77. d8=Q {[%emt 0:00:42]} 1-0

[Event "FIDE World Senior-50 CC 2023"]
[Site "Terrasini"]
[Date "2023.10.30"]
[Round "6.16"]
[White "Schnelzer, Reinhold"]
[Black "Nadanian, Ashot"]
[Result "0-1"]
[ECO "A90"]
[WhiteElo "2174"]
[BlackElo "2279"]
[Annotator "RC"]
[PlyCount "90"]
[EventDate "2023.10.22"]
[EventType "swiss"]
[EventCountry "ITA"]
[SourceTitle "playchess.com"]
[Source "ChessBase"]
[SourceQuality "1"]
[TimeControl "40/5400+30:1800+30"]

1. d4 {[%emt 0:00:05]} e6 {[%emt 0:01:06]} 2. c4 {[%emt 0:00:29]} f5 {[%emt 0:00:54]} 3. Nf3 {[%emt 0:00:36]} Nf6 {[%emt 0:00:18]} 4. g3 {[%emt 0:01:03]} d5 {[%emt 0:01:07]} 5. Bg2 {[%emt 0:00:46]} c6 {[%emt 0:00:19]} 6. O-O {[%emt 0:01:49]} Bd6 {[%emt 0:00:20]} 7. b3 {[%emt 0:01:19]} Qe7 {[%emt 0:00:32]} 8. Bb2 {[%emt 0:07:50]} b6 {[%emt 0:01:48]} 9. Nbd2 {[%emt 0:01:32]} Bb7 {[%emt 0:00:28]} 10. Ne5 {[%emt 0:01:04]} O-O {[%emt 0:01:36]} 11. Ndf3 {[%emt 0:01:12]} a5 {[%emt 0:06:03]} 12. Qc2 {[%emt 0:09:17]} Na6 {[%emt 0:02:07]} 13. cxd5 {[%emt 0:03:35]} cxd5 {[%emt 0:01:10]} 14. Rfc1 {[%emt 0:14:24]} Rfc8 {[%emt 0:18:53]} 15. Qd1 {[%emt 0:01:41]} Nb4 {[%emt 0:00:25]} 16. a3 {[%emt 0:04:34]} Na6 {[%emt 0:00:47]} 17. a4 {[%emt 0:00:48]} Qe8 {[%emt 0:19:17]} 18. Rxc8 {[%emt 0:02:14]} Rxc8 {[%emt 0:00:05]} 19. Rc1 {[%emt 0:00:18]} Rxc1 {[%emt 0:06:14]} 20. Qxc1 {[%emt 0:02:38]} b5 {[%emt 0:03:09]} 21. Qd1 {[%emt 0:03:46]} Ne4 {[%emt 0:04:01]} 22. e3 {[%emt 0:04:35]} bxa4 {[%emt 0:03:04]} 23. bxa4 {[%emt 0:00:17]} Nb4 {[%emt 0:01:13]} 24. Bf1 {[%emt 0:02:08]} Ba6 {[%emt 0:03:34]} 25. Bxa6 {[%emt 0:01:04]} Nxa6 {[%emt 0:00:05]} 26. Nd3 {[%emt 0:00:42]} Nb4 {[%emt 0:06:55]} 27. Nfe5 {[%emt 0:01:21]} Qc8 {[%emt 0:03:09]} 28. Kg2 {[%emt 0:05:48]} Nxd3 {[%emt 0:02:52]} 29. Nxd3 {[%emt 0:04:29]} Qc4 {[%emt 0:00:18]} 30. Nc1 {[%emt 0:01:01]} Bb4 {[%emt 0:01:56]} 31. Nd3 {[%emt 0:02:52]} Bd6 {[%emt 0:01:20]} 32. Nc1 {[%emt 0:00:17]} g6 {[%emt 0:02:24]} 33. Nd3 {[%emt 0:02:16]} Nf6 {[%emt 0:01:15]} 34. Nc5 {[%emt 0:06:23]} Kf7 {[%emt 0:01:41]} 35. Qd2 {[%emt 0:09:28]} Bxc5 {[%emt 0:01:32]} 36. dxc5 {[%emt 0:00:02]} Qxc5 {[%emt 0:00:36]} 37. Ba1 {[%emt 0:01:45]} Nd7 {[%emt 0:03:44]} 38. Qb2 {[%emt 0:01:02]} e5 {[%emt 0:00:12]} 39. Qb7 {[%emt 0:00:14]} Ke6 {[%emt 0:00:21]} 40. Qa8 {[%emt 0:01:38]} Qc1 {[%emt 0:03:01]} 41. Qg8+ {[%emt 0:02:12]} Kd6 {[%emt 0:00:16]} 42. Qxh7 {[%emt 0:00:35]} Qxa1 {[%emt 0:00:20]} 43. Qxg6+ {[%emt 0:00:33]} Kc7 {[%emt 0:00:37]} 44. Qxf5 {[%emt 0:00:44]} Qxa4 {[%emt 0:00:14]} 45. Qf7 {[%emt 0:02:02]} Qc6 {[%emt 0:03:26]} 0-1

[Event "FIDE World Senior-50 CC 2023"]
[Site "Terrasini"]
[Date "2023.10.30"]
[Round "6.17"]
[White "Issakainen, Ari"]
[Black "Maier, Christian"]
[Result "0-1"]
[ECO "E36"]
[WhiteElo "2152"]
[BlackElo "2278"]
[Annotator "RC"]
[PlyCount "94"]
[EventDate "2023.10.22"]
[EventType "swiss"]
[EventCountry "ITA"]
[SourceTitle "playchess.com"]
[Source "ChessBase"]
[SourceQuality "1"]
[TimeControl "40/5400+30:1800+30"]

1. d4 {[%emt 0:00:16]} e6 {[%emt 0:03:50]} 2. c4 {[%emt 0:00:21]} Nf6 {[%emt 0:00:06]} 3. Nc3 {[%emt 0:00:41]} Bb4 {[%emt 0:02:16]} 4. Qc2 {[%emt 0:00:31]} d5 {[%emt 0:00:37]} 5. Bg5 {[%emt 0:00:22]} O-O {[%emt 0:01:42]} 6. a3 {[%emt 0:01:25]} Bxc3+ {[%emt 0:01:21]} 7. Qxc3 {[%emt 0:00:13]} Nbd7 {[%emt 0:01:45]} 8. Nf3 {[%emt 0:01:23]} b6 {[%emt 0:01:32]} 9. cxd5 {[%emt 0:03:36]} exd5 {[%emt 0:00:18]} 10. e3 {[%emt 0:02:12]} c5 {[%emt 0:00:25]} 11. Bb5 {[%emt 0:04:45]} Qc7 {[%emt 0:05:29]} 12. Bf4 {[%emt 0:08:01]} Qb7 {[%emt 0:00:12]} 13. O-O {[%emt 0:02:27]} Ne4 {[%emt 0:02:32]} 14. Qc2 {[%emt 0:01:25]} c4 {[%emt 0:05:48]} 15. b3 {[%emt 0:04:33]} a6 {[%emt 0:02:09]} 16. Bxd7 {[%emt 0:00:18]} Bxd7 {[%emt 0:00:08]} 17. bxc4 {[%emt 0:01:32]} dxc4 {[%emt 0:02:40]} 18. Ne5 {[%emt 0:02:39]} Be6 {[%emt 0:13:01]} 19. f3 {[%emt 0:02:19]} Nf6 {[%emt 0:02:29]} 20. e4 {[%emt 0:01:14]} b5 {[%emt 0:00:29]} 21. d5 {[%emt 0:06:43]} Bd7 {[%emt 0:00:14]} 22. Qc3 {[%emt 0:07:38]} Rfc8 {[%emt 0:03:57]} 23. Be3 {[%emt 0:08:45]} Ne8 {[%emt 0:09:13]} 24. Bd4 {[%emt 0:00:57]} f6 {[%emt 0:00:33]} 25. Nxd7 {[%emt 0:09:24]} Qxd7 {[%emt 0:00:32]} 26. g4 {[%emt 0:01:27]} Nd6 {[%emt 0:01:44]} 27. g5 {[%emt 0:03:26]} fxg5 {[%emt 0:00:20]} 28. Ra2 {[%emt 0:00:26]} a5 {[%emt 0:00:09]} 29. Rg2 {[%emt 0:00:37]} b4 {[%emt 0:00:19]} 30. Qe3 {[%emt 0:04:16]} Nb5 {[%emt 0:01:32]} 31. axb4 {[%emt 0:07:39]} axb4 {[%emt 0:00:34]} 32. Kh1 {[%emt 0:02:13]} Nxd4 {[%emt 0:00:24]} 33. Qxd4 {[%emt 0:00:03]} Qa7 {[%emt 0:00:29]} 34. Qe5 {[%emt 0:01:12]} h6 {[%emt 0:00:56]} 35. h4 {[%emt 0:01:29]} Re8 {[%emt 0:01:13]} 36. Qd6 {[%emt 0:01:08]} Qe7 {[%emt 0:01:08]} 37. Qc6 {[%emt 0:00:28]} Rac8 {[%emt 0:01:32]} 38. Qa6 {[%emt 0:00:57]} Qf6 {[%emt 0:07:42]} 39. Qb5 {[%emt 0:02:22]} Rxe4 {[%emt 0:04:52]} 40. hxg5 {[%emt 0:01:57]} Rh4+ {[%emt 0:00:28]} 41. Kg1 {[%emt 0:31:28]} hxg5 {[%emt 0:30:27]} 42. Qxb4 {[%emt 0:01:53]} Qd4+ {[%emt 0:00:15]} 43. Rff2 {[%emt 0:01:28]} Ra8 {[%emt 0:01:04]} 44. Rxg5 {[%emt 0:02:18]} Ra1+ {[%emt 0:00:49]} 45. Kg2 {[%emt 0:00:13]} Rh2+ {[%emt 0:00:21]} 46. Kxh2 {[%emt 0:00:30]} Qxf2+ {[%emt 0:00:06]} 47. Kh3 {[%emt 0:00:05]} Qxf3+ {[%emt 0:00:06]} 0-1

[Event "FIDE World Senior-50 CC 2023"]
[Site "Terrasini"]
[Date "2023.10.30"]
[Round "6.18"]
[White "Nikolaidis, Konstantinos"]
[Black "Mantovani, Renzo"]
[Result "1/2-1/2"]
[ECO "A30"]
[WhiteElo "2096"]
[BlackElo "2236"]
[Annotator "RC"]
[PlyCount "128"]
[EventDate "2023.10.22"]
[EventType "swiss"]
[EventCountry "ITA"]
[SourceTitle "playchess.com"]
[Source "ChessBase"]
[SourceQuality "1"]
[TimeControl "40/5400+30:1800+30"]

1. Nf3 {[%emt 0:00:19]} Nf6 {[%emt 0:01:08]} 2. c4 {[%emt 0:00:50]} c5 {[%emt 0:01:25]} 3. g3 {[%emt 0:00:51]} b6 {[%emt 0:02:58]} 4. Bg2 {[%emt 0:00:21]} Bb7 {[%emt 0:00:05]} 5. O-O {[%emt 0:00:33]} e6 {[%emt 0:07:12]} 6. Nc3 {[%emt 0:01:06]} Be7 {[%emt 0:02:41]} 7. d4 {[%emt 0:01:21]} cxd4 {[%emt 0:00:21]} 8. Qxd4 {[%emt 0:00:33]} d6 {[%emt 0:00:44]} 9. Rd1 {[%emt 0:06:28]} a6 {[%emt 0:00:45]} 10. b3 {[%emt 0:16:21]} Nbd7 {[%emt 0:01:12]} 11. Ba3 {[%emt 0:07:15]} Nc5 {[%emt 0:01:22]} 12. Qe3 {[%emt 0:04:38]} Qc7 {[%emt 0:01:38]} 13. Nd4 {[%emt 0:05:24]} Bxg2 {[%emt 0:04:47]} 14. Kxg2 {[%emt 0:00:06]} O-O {[%emt 0:00:14]} 15. Rac1 {[%emt 0:03:38]} Rfe8 {[%emt 0:04:05]} 16. Qf3 {[%emt 0:02:16]} Rac8 {[%emt 0:00:22]} 17. g4 {[%emt 0:01:46]} h6 {[%emt 0:04:25]} 18. h4 {[%emt 0:08:00]} Nh7 {[%emt 0:00:43]} 19. Rh1 {[%emt 0:04:03]} Bf6 {[%emt 0:04:25]} 20. Rcd1 {[%emt 0:05:19]} g6 {[%emt 0:23:53]} 21. g5 {[%emt 0:13:51]} hxg5 {[%emt 0:02:09]} 22. hxg5 {[%emt 0:01:01]} Bxg5 {[%emt 0:12:09]} 23. b4 {[%emt 0:04:00]} Nb7 {[%emt 0:02:20]} 24. Ne4 {[%emt 0:02:59]} f5 {[%emt 0:11:07]} 25. Nxg5 {[%emt 0:01:49]} Nxg5 {[%emt 0:00:03]} 26. Qg3 {[%emt 0:03:42]} Ne4 {[%emt 0:01:09]} 27. Qxg6+ {[%emt 0:02:50]} Qg7 {[%emt 0:00:06]} 28. Qxg7+ {[%emt 0:00:42]} Kxg7 {[%emt 0:00:05]} 29. Bb2 {[%emt 0:00:42]} Nf6 {[%emt 0:04:20]} 30. Rc1 {[%emt 0:00:31]} Kf7 {[%emt 0:00:33]} 31. Rh6 {[%emt 0:01:36]} Rh8 {[%emt 0:04:14]} 32. Nxf5 {[%emt 0:00:55]} Rxh6 {[%emt 0:00:22]} 33. Nxh6+ {[%emt 0:00:02]} Kg6 {[%emt 0:00:03]} 34. Bxf6 {[%emt 0:00:31]} Kxf6 {[%emt 0:00:04]} 35. Ng4+ {[%emt 0:00:07]} Kg6 {[%emt 0:01:04]} 36. Ne3 {[%emt 0:00:39]} d5 {[%emt 0:00:39]} 37. Kf3 {[%emt 0:00:35]} Rf8+ {[%emt 0:00:39]} 38. Kg2 {[%emt 0:00:22]} Rc8 {[%emt 0:00:12]} 39. Kf3 {[%emt 0:00:12]} Rf8+ {[%emt 0:00:05]} 40. Kg2 {[%emt 0:00:04]} Rc8 {[%emt 0:00:13]} 41. Rc2 {[%emt 0:10:21]} d4 {[%emt 0:06:12]} 42. Nf1 {[%emt 0:00:23]} a5 {[%emt 0:01:28]} 43. a3 {[%emt 0:04:58]} axb4 {[%emt 0:00:07]} 44. axb4 {[%emt 0:00:04]} Kf5 {[%emt 0:04:24]} 45. f3 {[%emt 0:02:02]} Ke5 {[%emt 0:01:39]} 46. Kf2 {[%emt 0:03:06]} Ra8 {[%emt 0:06:57]} 47. Nd2 {[%emt 0:03:34]} Ra4 {[%emt 0:03:12]} 48. Rb2 {[%emt 0:03:38]} Ra1 {[%emt 0:02:45]} 49. e3 {[%emt 0:01:22]} dxe3+ {[%emt 0:01:31]} 50. Kxe3 {[%emt 0:00:02]} Re1+ {[%emt 0:02:06]} 51. Kd3 {[%emt 0:01:30]} Kd6 {[%emt 0:04:24]} 52. Ra2 {[%emt 0:01:53]} Kc6 {[%emt 0:00:52]} 53. Ra6 {[%emt 0:00:25]} Kc7 {[%emt 0:00:12]} 54. Ra7 {[%emt 0:01:00]} Kb8 {[%emt 0:00:13]} 55. Ra6 {[%emt 0:00:14]} Kc7 {[%emt 0:00:03]} 56. Ra8 {[%emt 0:00:34]} Nd6 {[%emt 0:00:25]} 57. Rh8 {[%emt 0:00:27]} Nf5 {[%emt 0:00:42]} 58. Rh7+ {[%emt 0:00:21]} Kd6 {[%emt 0:01:39]} 59. Rb7 {[%emt 0:01:53]} Re3+ {[%emt 0:00:43]} 60. Kc2 {[%emt 0:00:10]} Nd4+ {[%emt 0:00:28]} 61. Kb2 {[%emt 0:03:05]} Kc6 {[%emt 0:00:27]} 62. Re7 {[%emt 0:00:27]} Kd6 {[%emt 0:00:32]} 63. Rb7 {[%emt 0:00:06]} Kc6 {[%emt 0:00:13]} 64. Re7 {[%emt 0:00:16]} Kd6 {[%emt 0:00:39]} 1/2-1/2

[Event "FIDE World Senior-50 CC 2023"]
[Site "Terrasini"]
[Date "2023.10.30"]
[Round "6.19"]
[White "Estremera Panos, Sergio"]
[Black "Kalisky, Vladimir"]
[Result "0-1"]
[ECO "E91"]
[WhiteElo "2232"]
[BlackElo "2169"]
[Annotator "RC"]
[PlyCount "100"]
[EventDate "2023.10.22"]
[EventType "swiss"]
[EventCountry "ITA"]
[SourceTitle "playchess.com"]
[Source "ChessBase"]
[SourceQuality "1"]
[TimeControl "40/5400+30:1800+30"]

1. d4 {[%emt 0:00:11]} Nf6 {[%emt 0:00:09]} 2. c4 {[%emt 0:01:22]} d6 {[%emt 0:00:10]} 3. Nf3 {[%emt 0:00:24]} c5 {[%emt 0:00:15]} 4. dxc5 {[%emt 0:14:23]} Qa5+ {[%emt 0:00:08]} 5. Nc3 {[%emt 0:00:06]} Qxc5 {[%emt 0:00:04]} 6. e4 {[%emt 0:00:20]} g6 {[%emt 0:00:08]} 7. Be2 {[%emt 0:02:03]} Bg7 {[%emt 0:00:08]} 8. O-O {[%emt 0:00:17]} O-O {[%emt 0:00:20]} 9. Be3 {[%emt 0:07:36]} Qa5 {[%emt 0:00:04]} 10. Nd4 {[%emt 0:00:30]} Bd7 {[%emt 0:07:07]} 11. f3 {[%emt 0:03:26]} Rc8 {[%emt 0:04:30]} 12. Qd2 {[%emt 0:07:10]} Nc6 {[%emt 0:07:02]} 13. Nb3 {[%emt 0:00:32]} Qd8 {[%emt 0:08:25]} 14. c5 {[%emt 0:02:37]} Ne8 {[%emt 0:00:22]} 15. Rfd1 {[%emt 0:08:13]} Be6 {[%emt 0:03:59]} 16. Nd5 {[%emt 0:09:54]} Ne5 {[%emt 0:12:54]} 17. Rac1 {[%emt 0:02:45]} dxc5 {[%emt 0:10:43]} 18. Rxc5 {[%emt 0:01:07]} Rxc5 {[%emt 0:00:24]} 19. Nxc5 {[%emt 0:00:12]} Bxd5 {[%emt 0:01:08]} 20. Qxd5 {[%emt 0:11:23]} Qxd5 {[%emt 0:00:05]} 21. Rxd5 {[%emt 0:00:13]} b6 {[%emt 0:11:06]} 22. Na6 {[%emt 0:10:00]} h5 {[%emt 0:08:58]} 23. h3 {[%emt 0:04:11]} Nd6 {[%emt 0:04:53]} 24. b3 {[%emt 0:05:20]} Rc8 {[%emt 0:01:06]} 25. Bf1 {[%emt 0:02:45]} Kf8 {[%emt 0:03:55]} 26. Nb4 {[%emt 0:00:35]} a5 {[%emt 0:05:58]} 27. Nd3 {[%emt 0:01:15]} Nd7 {[%emt 0:03:58]} 28. e5 {[%emt 0:00:35]} Nf5 {[%emt 0:00:02]} 29. Bf2 {[%emt 0:00:31]} Ke8 {[%emt 0:00:26]} 30. g4 {[%emt 0:00:58]} hxg4 {[%emt 0:01:50]} 31. hxg4 {[%emt 0:00:01]} Nh6 {[%emt 0:00:45]} 32. Rb5 {[%emt 0:02:29]} Rc6 {[%emt 0:00:27]} 33. a4 {[%emt 0:01:02]} e6 {[%emt 0:00:37]} 34. Be2 {[%emt 0:01:11]} Ng8 {[%emt 0:00:04]} 35. f4 {[%emt 0:00:25]} Ne7 {[%emt 0:00:06]} 36. Bf3 {[%emt 0:00:16]} Rc3 {[%emt 0:00:29]} 37. Be4 {[%emt 0:00:14]} f5 {[%emt 0:00:53]} 38. exf6 {[%emt 0:02:58]} Nxf6 {[%emt 0:00:19]} 39. Bd4 {[%emt 0:00:00]} Nxe4 {[%emt 0:00:59]} 40. Bxg7 {[%emt 0:00:14]} Rxd3 {[%emt 0:00:11]} 41. Rxb6 {[%emt 0:30:18]} Kf7 {[%emt 0:32:52]} 42. Be5 {[%emt 0:00:10]} Rg3+ {[%emt 0:00:00]} 43. Kh2 {[%emt 0:00:00]} Rxg4 {[%emt 0:00:00]} 44. b4 {[%emt 0:00:00]} Nf5 {[%emt 0:00:00]} 45. Rb7+ {[%emt 0:00:00]} Ke8 {[%emt 0:00:00]} 46. b5 {[%emt 0:00:00]} g5 {[%emt 0:00:00]} 47. Rb8+ {[%emt 0:00:00]} Kf7 {[%emt 0:00:00]} 48. Rb7+ {[%emt 0:00:00]} Kg6 {[%emt 0:00:00]} 49. b6 {[%emt 0:00:00]} gxf4 {[%emt 0:00:00]} 50. Rc7 {[%emt 0:00:00]} f3 {[%emt 0:00:00]} 0-1

[Event "FIDE World Senior-50 CC 2023"]
[Site "Terrasini"]
[Date "2023.11.01"]
[Round "7.1"]
[White "Morovic Fernandez, Ivan"]
[Black "Adams, Michael"]
[Result "1/2-1/2"]
[WhiteElo "2488"]
[BlackElo "2670"]
[Annotator "TA"]
[PlyCount "32"]
[EventDate "2023.10.22"]
[EventType "swiss"]
[EventCountry "ITA"]
[SourceTitle "playchess.com"]
[Source "ChessBase"]
[SourceQuality "1"]
[TimeControl "40/5400+30:1800+30"]

{[%evp 15,19,37,49,30,42,4]} 1. e4 {[%emt 0:00:14]} e5 {[%emt 0:00:07]} 2. Nf3 {[%emt 0:00:06]} Nc6 {[%emt 0:00:05]} 3. Bb5 {[%emt 0:00:05]} a6 {[%emt 0:00:04]} 4. Ba4 {[%emt 0:00:08]} Nf6 {[%emt 0:00:07]} 5. O-O {[%emt 0:00:07]} d6 {[%emt 0:00:07]} 6. c3 {[%emt 0:05:14]} Bd7 {[%emt 0:00:37]} 7. Re1 {[%emt 0:01:19]} g6 {[%emt 0:00:21]} 8. d4 {[%emt 0:01:08]} Bg7 {[%emt 0:00:07]} 9. Nbd2 {[%emt 0:03:05] 9.h3 is the hot move. C79: Ruy Lopez: Steinitz-type lines with 3...a6 4 Ba4 Nf6 5 0-0 d6.} O-O {[%emt 0:02:31]} 10. Bxc6 {[%emt 0:06:12] [#]} {Predecessor:} Bxc6 $146 11. dxe5 dxe5 12. Nxe5 Bxe4 13. Nxe4 Qxd1 14. Nxf6+ Bxf6 15. Rxd1 Bxe5 16. Be3 Rfd8 {½-½ Djukic,N (2507)-Sasikiran,K (2660) EU-Cup 35th Ulcinj 2019 (1.3)} 1/2-1/2

[Event "FIDE World Senior-50 CC 2023"]
[Site "Terrasini"]
[Date "2023.11.01"]
[Round "7.2"]
[White "Atalik, Suat"]
[Black "Minasian, Artashes"]
[Result "1-0"]
[ECO "E41"]
[WhiteElo "2427"]
[BlackElo "2462"]
[Annotator "ChessBase"]
[PlyCount "81"]
[EventDate "2023.10.22"]
[EventType "swiss"]
[EventCountry "ITA"]
[SourceTitle "playchess.com"]
[Source "ChessBase"]
[SourceQuality "1"]
[TimeControl "40/5400+30:1800+30"]

1. d4 {[%emt 0:00:05]} Nf6 {[%emt 0:00:13]} 2. c4 {[%emt 0:00:30]} e6 {[%emt 0:00:24]} 3. Nc3 {[%emt 0:01:57]} Bb4 {[%emt 0:00:42]} 4. e3 {[%emt 0:02:03]} Bxc3+ {[%emt 0:01:16]} 5. bxc3 {[%emt 0:00:06]} c5 {[%emt 0:00:02]} 6. Ne2 {[%emt 0:04:23]} d6 {[%emt 0:01:28]} 7. Ng3 {[%emt 0:01:01]} Nc6 {[%emt 0:02:35]} 8. Bd3 {[%emt 0:06:44]} e5 {[%emt 0:03:59]} 9. O-O {[%emt 0:01:18]} O-O {[%emt 0:10:25]} 10. d5 {[%emt 0:06:00]} Ne7 {[%emt 0:00:05]} 11. Qc2 {[%emt 0:00:05]} Ng6 {[%emt 0:12:00]} 12. Bd2 {[%emt 0:08:14]} Re8 {[%emt 0:06:10]} 13. f3 {[%emt 0:02:15]} Bd7 {[%emt 0:03:07]} 14. Rfb1 {[%emt 0:03:06]} Rb8 {[%emt 0:00:20]} 15. a4 {[%emt 0:03:15]} Qa5 {[%emt 0:03:29]} 16. e4 {[%emt 0:03:13]} h6 {[%emt 0:09:37]} 17. Nf5 {[%emt 0:02:03]} Qc7 {[%emt 0:06:33]} 18. g3 {[%emt 0:01:32]} Nf8 {[%emt 0:03:15]} 19. Re1 {[%emt 0:05:16]} N6h7 {[%emt 0:03:07]} 20. h4 {[%emt 0:01:32]} Ng6 {[%emt 0:03:21]} 21. Re2 {[%emt 0:01:44]} Ne7 {[%emt 0:00:19]} 22. Rh2 {[%emt 0:06:15]} Nxf5 {[%emt 0:03:42]} 23. exf5 {[%emt 0:00:06]} a6 {[%emt 0:00:03]} 24. g4 {[%emt 0:02:33]} b5 {[%emt 0:02:28]} 25. g5 {[%emt 0:01:52]} bxc4 {[%emt 0:03:58]} 26. Be4 {[%emt 0:04:36]} f6 {[%emt 0:05:31]} 27. Rg2 {[%emt 0:05:25]} h5 {[%emt 0:10:47]} 28. Kh1 {[%emt 0:05:04]} Re7 {[%emt 0:01:30]} 29. Rag1 {[%emt 0:00:55]} Kh8 {[%emt 0:01:41]} 30. Qc1 {[%emt 0:07:53]} Bxa4 {[%emt 0:01:37]} 31. gxf6 {[%emt 0:01:34]} Nxf6 {[%emt 0:01:35]} 32. Bg5 {[%emt 0:00:18]} Rf8 {[%emt 0:00:28]} 33. Bxf6 {[%emt 0:00:46]} Rxf6 {[%emt 0:00:06]} 34. Rg6 {[%emt 0:00:23]} Rxg6 {[%emt 0:00:34]} 35. fxg6 {[%emt 0:04:02]} Qc8 {[%emt 0:00:38]} 36. Rg3 {[%emt 0:00:41]} Kg8 {[%emt 0:00:38]} 37. Qg5 {[%emt 0:00:37]} Kf8 {[%emt 0:00:20]} 38. Qxh5 {[%emt 0:00:34]} Re8 {[%emt 0:00:10]} 39. Qh8+ {[%emt 0:03:51]} Ke7 {[%emt 0:00:03]} 40. Qxg7+ {[%emt 0:00:04]} Kd8 {[%emt 0:00:01]} 41. Qf7 {[%emt 0:32:18]} 1-0